[Event "Betsys MČR v online bleskovém šachu 2021"]
[Site "Chess.com"]
[Date "2021.04.17"]
[Round "13"]
[White "Richarlito"]
[Black "vit_rosenbaum"]
[Result "1/2-1/2"]
[WhiteElo "2081"]
[BlackElo "2254"]
[TimeControl "180+1"]
[EndTime "11:08:19 PDT"]
[Termination "Remíza opakováním pozice"]

1. e4 {[%clk 0:03:00.9]} 1... e6 {[%clk 0:03:00.3]} 2. d4 {[%clk 0:03:00.7]}
2... d5 {[%clk 0:03:01]} 3. exd5 {[%clk 0:03:01.2]} 3... exd5 {[%clk 0:03:01.2]}
4. c4 {[%clk 0:03:01.8]} 4... Nf6 {[%clk 0:03:00.8]} 5. Nc3 {[%clk 0:03:02]}
5... Be7 {[%clk 0:03:00.8]} 6. Bd3 {[%clk 0:03:02.2]} 6... dxc4 {[%clk
0:03:00.2]} 7. Bxc4 {[%clk 0:03:02]} 7... O-O {[%clk 0:03:00.4]} 8. Nge2 {[%clk
0:03:02.3]} 8... Nbd7 {[%clk 0:03:00.8]} 9. O-O {[%clk 0:03:02.4]} 9... Nb6
{[%clk 0:03:01.1]} 10. Bd3 {[%clk 0:03:02.3]} 10... Nbd5 {[%clk 0:03:01.1]} 11.
Bg5 {[%clk 0:02:56.8]} 11... h6 {[%clk 0:02:59]} 12. Bh4 {[%clk 0:02:55.8]}
12... c6 {[%clk 0:02:58.2]} 13. Bg3 {[%clk 0:02:55.5]} 13... Bg4 {[%clk
0:02:54.6]} 14. f3 {[%clk 0:02:52.6]} 14... Be6 {[%clk 0:02:53.8]} 15. Kh1
{[%clk 0:02:50.8]} 15... Re8 {[%clk 0:02:52]} 16. Nf4 {[%clk 0:02:49.3]} 16...
Nxf4 {[%clk 0:02:50.6]} 17. Bxf4 {[%clk 0:02:49.5]} 17... Nd5 {[%clk 0:02:50.8]}
18. Bg3 {[%clk 0:02:42.4]} 18... Ne3 {[%clk 0:02:45.7]} 19. Qd2 {[%clk
0:02:38.9]} 19... Nxf1 {[%clk 0:02:45.4]} 20. Rxf1 {[%clk 0:02:38.4]} 20... Bg5
{[%clk 0:02:41]} 21. f4 {[%clk 0:02:37.2]} 21... Bf6 {[%clk 0:02:39.6]} 22. f5
{[%clk 0:02:37.1]} 22... Bd5 {[%clk 0:02:35.4]} 23. Bf2 {[%clk 0:02:35.4]} 23...
Qb6 {[%clk 0:02:28.8]} 24. Na4 {[%clk 0:02:33.1]} 24... Qd8 {[%clk 0:02:17.2]}
25. Nc3 {[%clk 0:02:26.9]} 25... Qd7 {[%clk 0:02:13.9]} 26. Be3 {[%clk
0:02:18.4]} 26... Rad8 {[%clk 0:02:09.7]} 27. Ne2 {[%clk 0:02:10.3]} 27... Be4
{[%clk 0:02:06.4]} 28. Bc4 {[%clk 0:02:08.2]} 28... Bxf5 {[%clk 0:01:59.2]} 29.
Bxh6 {[%clk 0:01:58.4]} 29... gxh6 {[%clk 0:01:58.8]} 30. Qxh6 {[%clk
0:01:58.5]} 30... Bg7 {[%clk 0:01:58.8]} 31. Qg5 {[%clk 0:01:57.2]} 31... Be6
{[%clk 0:01:47.4]} 32. Nf4 {[%clk 0:01:54.3]} 32... Bxc4 {[%clk 0:01:44.1]} 33.
Nh5 {[%clk 0:01:54.5]} 33... Kf8 {[%clk 0:01:24]} 34. Qxg7+ {[%clk 0:01:53.9]}
34... Ke7 {[%clk 0:01:24.3]} 35. Qf6+ {[%clk 0:01:48.3]} 35... Kf8 {[%clk
0:01:23.8]} 36. Qg7+ {[%clk 0:01:48.5]} 36... Ke7 {[%clk 0:01:24]} 37. Qf6+
{[%clk 0:01:48.8]} 37... Kf8 {[%clk 0:01:24.3]} 38. Qg7+ {[%clk 0:01:49.2]}
1/2-1/2

[Event "Betsys MČR v online bleskovém šachu 2021"]
[Site "Chess.com"]
[Date "2021.04.17"]
[Round "13"]
[White "krajic001"]
[Black "Anyna"]
[Result "1-0"]
[WhiteElo "1097"]
[BlackElo "834"]
[TimeControl "180+1"]
[EndTime "11:08:19 PDT"]
[Termination "Uživatel krajic001 zvítězil po vzdání soupeře"]

1. e4 {[%clk 0:03:00.9]} 1... d5 {[%clk 0:02:58.5]} 2. exd5 {[%clk 0:02:58.4]}
2... Qxd5 {[%clk 0:02:57.3]} 3. d4 {[%clk 0:02:58.2]} 3... Nc6 {[%clk
0:02:54.8]} 4. Nf3 {[%clk 0:02:56.8]} 4... Nf6 {[%clk 0:02:53]} 5. Nc3 {[%clk
0:02:55.2]} 5... Qa5 {[%clk 0:02:51.2]} 6. Bd2 {[%clk 0:02:54.1]} 6... Bg4
{[%clk 0:02:48]} 7. Ne4 {[%clk 0:02:37.6]} 7... Qb6 {[%clk 0:02:43]} 8. Nxf6+
{[%clk 0:02:36.9]} 8... gxf6 {[%clk 0:02:41.5]} 9. c3 {[%clk 0:02:36.3]} 9...
O-O-O {[%clk 0:02:39.6]} 10. a4 {[%clk 0:02:26.8]} 10... Qxb2 {[%clk 0:02:29.5]}
11. Rb1 {[%clk 0:02:23.4]} 11... Qa2 {[%clk 0:02:27]} 12. Bd3 {[%clk 0:01:58.4]}
12... e5 {[%clk 0:02:02.1]} 13. h3 {[%clk 0:01:48.5]} 13... Bxf3 {[%clk
0:01:59.1]} 14. Qxf3 {[%clk 0:01:43.9]} 14... Bd6 {[%clk 0:01:52.3]} 15. O-O
{[%clk 0:01:30.4]} 15... Qxd2 {[%clk 0:01:39.2]} 16. Be4 {[%clk 0:01:14.8]}
16... Qxc3 {[%clk 0:01:27]} 17. Qxc3 {[%clk 0:01:02]} 1-0

[Event "Betsys MČR v online bleskovém šachu 2021"]
[Site "Chess.com"]
[Date "2021.04.17"]
[Round "13"]
[White "jankrelina07"]
[Black "Miky2610"]
[Result "0-1"]
[WhiteElo "1593"]
[BlackElo "1807"]
[TimeControl "180+1"]
[EndTime "11:08:35 PDT"]
[Termination "Uživatel Miky2610 zvítězil po vzdání soupeře"]

1. d4 {[%clk 0:03:00.9]} 1... c6 {[%clk 0:02:58.9]} 2. Bf4 {[%clk 0:03:00.7]}
2... d5 {[%clk 0:02:57]} 3. e3 {[%clk 0:03:00.7]} 3... Nf6 {[%clk 0:02:56.7]} 4.
c3 {[%clk 0:03:00.5]} 4... Bf5 {[%clk 0:02:56.2]} 5. Bd3 {[%clk 0:02:59.9]} 5...
Bxd3 {[%clk 0:02:54.7]} 6. Qxd3 {[%clk 0:02:59.8]} 6... Nbd7 {[%clk 0:02:54.6]}
7. Nf3 {[%clk 0:02:59.7]} 7... e6 {[%clk 0:02:50.9]} 8. Nbd2 {[%clk 0:02:59.4]}
8... Be7 {[%clk 0:02:50.9]} 9. Ne5 {[%clk 0:02:56.1]} 9... Nxe5 {[%clk
0:02:45.6]} 10. Bxe5 {[%clk 0:02:55]} 10... Qb6 {[%clk 0:02:42.3]} 11. Qc2
{[%clk 0:02:53.4]} 11... O-O {[%clk 0:02:38.4]} 12. Nf3 {[%clk 0:02:52.2]} 12...
Ng4 {[%clk 0:02:34.5]} 13. Bg3 {[%clk 0:02:50.7]} 13... c5 {[%clk 0:02:31]} 14.
h3 {[%clk 0:02:49.2]} 14... Nf6 {[%clk 0:02:28.4]} 15. Be5 {[%clk 0:02:40.4]}
15... Ne4 {[%clk 0:02:24.4]} 16. Bh2 {[%clk 0:02:37.4]} 16... Bd6 {[%clk
0:02:21.2]} 17. Bxd6 {[%clk 0:02:33.7]} 17... Qxd6 {[%clk 0:02:19.6]} 18. Nd2
{[%clk 0:02:33.2]} 18... Nf6 {[%clk 0:02:08.3]} 19. Nf3 {[%clk 0:02:30.6]} 19...
cxd4 {[%clk 0:02:07]} 20. exd4 {[%clk 0:02:27.3]} 20... Rac8 {[%clk 0:02:05.4]}
21. Qd2 {[%clk 0:02:25.5]} 21... b5 {[%clk 0:02:03.2]} 22. O-O {[%clk
0:02:23.9]} 22... a5 {[%clk 0:02:03]} 23. Qe2 {[%clk 0:02:23.1]} 23... b4 {[%clk
0:02:01.8]} 24. Rac1 {[%clk 0:02:20.8]} 24... bxc3 {[%clk 0:02:00]} 25. bxc3
{[%clk 0:02:20.3]} 25... Ne4 {[%clk 0:01:59.2]} 26. Qe3 {[%clk 0:02:08.9]} 26...
Qa3 {[%clk 0:01:58]} 27. Kh1 {[%clk 0:01:57.7]} 27... Rxc3 {[%clk 0:01:54.7]}
28. Rxc3 {[%clk 0:01:57.1]} 28... Qxc3 {[%clk 0:01:52.4]} 29. Qxc3 {[%clk
0:01:56.5]} 29... Nxc3 {[%clk 0:01:52.4]} 30. a3 {[%clk 0:01:55.7]} 30... h6
{[%clk 0:01:48]} 31. Ra1 {[%clk 0:01:54]} 31... Ne4 {[%clk 0:01:47.2]} 32. Kg1
{[%clk 0:01:50.7]} 32... Rc8 {[%clk 0:01:45.9]} 33. Ne5 {[%clk 0:01:47.8]} 33...
Rc2 {[%clk 0:01:42.7]} 34. f3 {[%clk 0:01:46.1]} 34... Nd6 {[%clk 0:01:37.1]}
35. Rb1 {[%clk 0:01:43]} 35... Rc3 {[%clk 0:01:32.2]} 36. a4 {[%clk 0:01:41.4]}
36... Ra3 {[%clk 0:01:29.1]} 37. Rb8+ {[%clk 0:01:38.4]} 37... Kh7 {[%clk
0:01:27.6]} 38. Nxf7 {[%clk 0:01:35.8]} 38... Nxf7 {[%clk 0:01:27]} 0-1

[Event "Betsys MČR v online bleskovém šachu 2021"]
[Site "Chess.com"]
[Date "2021.04.17"]
[Round "13"]
[White "Dasty78"]
[Black "FMD-MP"]
[Result "0-1"]
[WhiteElo "1976"]
[BlackElo "1736"]
[TimeControl "180+1"]
[EndTime "11:08:37 PDT"]
[Termination "Uživatel FMD-MP zvítězil matem"]

1. e4 {[%clk 0:02:53.1]} 1... c5 {[%clk 0:03:00.1]} 2. Nf3 {[%clk 0:02:52.6]}
2... Nc6 {[%clk 0:03:00.7]} 3. Nc3 {[%clk 0:02:51.7]} 3... d6 {[%clk 0:03:00.1]}
4. d4 {[%clk 0:02:51.6]} 4... cxd4 {[%clk 0:02:59.3]} 5. Nxd4 {[%clk 0:02:51.9]}
5... Nf6 {[%clk 0:02:58.5]} 6. Bg5 {[%clk 0:02:50.7]} 6... h6 {[%clk 0:02:56]}
7. Bh4 {[%clk 0:02:36.9]} 7... g5 {[%clk 0:02:55.2]} 8. Bg3 {[%clk 0:02:35.4]}
8... Bg7 {[%clk 0:02:55.7]} 9. Bc4 {[%clk 0:02:27.1]} 9... Qb6 {[%clk
0:02:38.3]} 10. Nb3 {[%clk 0:02:03.9]} 10... O-O {[%clk 0:02:25.4]} 11. Qd2
{[%clk 0:01:56.9]} 11... Ne5 {[%clk 0:02:10.2]} 12. Be2 {[%clk 0:01:54.4]} 12...
Be6 {[%clk 0:02:05.1]} 13. O-O-O {[%clk 0:01:53.7]} 13... Rac8 {[%clk
0:02:00.9]} 14. f3 {[%clk 0:01:45.9]} 14... Nc4 {[%clk 0:01:56.8]} 15. Bxc4
{[%clk 0:01:42.3]} 15... Rxc4 {[%clk 0:01:52.9]} 16. h4 {[%clk 0:01:42]} 16...
g4 {[%clk 0:01:42.7]} 17. e5 {[%clk 0:01:27.4]} 17... dxe5 {[%clk 0:01:35.6]}
18. Bxe5 {[%clk 0:01:27.1]} 18... Rfc8 {[%clk 0:01:13.9]} 19. Nd4 {[%clk
0:01:23.8]} 19... Rxc3 {[%clk 0:01:02.2]} 20. bxc3 {[%clk 0:01:23.4]} 20... Bxa2
{[%clk 0:00:58.6]} 21. Nf5 {[%clk 0:01:19]} 21... Qb1# {[%clk 0:00:57]} 0-1

[Event "Betsys MČR v online bleskovém šachu 2021"]
[Site "Chess.com"]
[Date "2021.04.17"]
[Round "13"]
[White "fortale"]
[Black "tomasPardubice"]
[Result "1-0"]
[WhiteElo "2314"]
[BlackElo "2107"]
[TimeControl "180+1"]
[EndTime "11:08:40 PDT"]
[Termination "Uživatel fortale zvítězil po vzdání soupeře"]

1. e4 {[%clk 0:03:00.9]} 1... c5 {[%clk 0:02:58.7]} 2. Nf3 {[%clk 0:03:00.9]}
2... d6 {[%clk 0:02:58.2]} 3. d4 {[%clk 0:03:01.1]} 3... cxd4 {[%clk 0:02:58.1]}
4. Nxd4 {[%clk 0:03:02]} 4... Nf6 {[%clk 0:02:58.2]} 5. Nc3 {[%clk 0:03:02.3]}
5... a6 {[%clk 0:02:58.5]} 6. h3 {[%clk 0:03:01.9]} 6... e6 {[%clk 0:02:58.3]}
7. g4 {[%clk 0:03:01.2]} 7... d5 {[%clk 0:02:58.7]} 8. e5 {[%clk 0:02:42.2]}
8... Nfd7 {[%clk 0:02:57.4]} 9. Qe2 {[%clk 0:02:31.6]} 9... Qc7 {[%clk
0:02:53.8]} 10. f4 {[%clk 0:02:12.3]} 10... Bb4 {[%clk 0:02:50.5]} 11. Bd2
{[%clk 0:02:11.5]} 11... Nc6 {[%clk 0:02:50.5]} 12. Nb3 {[%clk 0:02:08.6]} 12...
O-O {[%clk 0:02:42.9]} 13. Bg2 {[%clk 0:02:06.3]} 13... b5 {[%clk 0:02:40.8]}
14. O-O-O {[%clk 0:02:03.8]} 14... Bb7 {[%clk 0:02:29]} 15. Kb1 {[%clk
0:01:54.8]} 15... Bxc3 {[%clk 0:02:26.9]} 16. Bxc3 {[%clk 0:01:53.2]} 16... b4
{[%clk 0:02:27.4]} 17. Bd2 {[%clk 0:01:49.8]} 17... a5 {[%clk 0:02:27.6]} 18.
Be3 {[%clk 0:01:48]} 18... a4 {[%clk 0:02:27.2]} 19. Nd4 {[%clk 0:01:46.2]}
19... Nxd4 {[%clk 0:02:23.5]} 20. Bxd4 {[%clk 0:01:47.1]} 20... Ba6 {[%clk
0:02:19]} 21. Qe3 {[%clk 0:01:44.8]} 21... Rfb8 {[%clk 0:02:15.8]} 22. f5 {[%clk
0:01:42.3]} 22... Nb6 {[%clk 0:02:15.5]} 23. f6 {[%clk 0:01:34]} 23... Qd8
{[%clk 0:02:10.2]} 24. Qg5 {[%clk 0:01:25.4]} 24... Qf8 {[%clk 0:02:10.2]} 25.
Bc5 {[%clk 0:01:03]} 25... h6 {[%clk 0:02:10.2]} 26. fxg7 {[%clk 0:00:34]} 26...
hxg5 {[%clk 0:02:07]} 27. gxf8=Q+ {[%clk 0:00:33.5]} 27... Rxf8 {[%clk
0:01:58.1]} 28. Bxb6 {[%clk 0:00:33.9]} 1-0

[Event "Betsys MČR v online bleskovém šachu 2021"]
[Site "Chess.com"]
[Date "2021.04.17"]
[Round "13"]
[White "vikysachy"]
[Black "VildaSt"]
[Result "0-1"]
[WhiteElo "871"]
[BlackElo "1284"]
[TimeControl "180+1"]
[EndTime "11:08:40 PDT"]
[Termination "Uživatel VildaSt zvítězil matem"]

1. e4 {[%clk 0:03:00.9]} 1... e5 {[%clk 0:02:59.9]} 2. Nf3 {[%clk 0:03:00.5]}
2... Nc6 {[%clk 0:02:59.9]} 3. Nc3 {[%clk 0:02:59.9]} 3... Nf6 {[%clk 0:02:59]}
4. Bc4 {[%clk 0:02:59.7]} 4... Bb4 {[%clk 0:02:47.9]} 5. d3 {[%clk 0:02:56.7]}
5... O-O {[%clk 0:02:44.6]} 6. Bg5 {[%clk 0:02:51.6]} 6... Be7 {[%clk
0:02:41.1]} 7. Qd2 {[%clk 0:02:46.3]} 7... Na5 {[%clk 0:02:40.9]} 8. Bh6 {[%clk
0:02:44.7]} 8... Nxc4 {[%clk 0:02:37]} 9. dxc4 {[%clk 0:02:42]} 9... d6 {[%clk
0:02:35.7]} 10. Qg5 {[%clk 0:02:39.1]} 10... g6 {[%clk 0:02:35.7]} 11. Bxf8
{[%clk 0:02:37.6]} 11... Bxf8 {[%clk 0:02:33.9]} 12. Qh4 {[%clk 0:02:36.2]}
12... Be7 {[%clk 0:02:27.3]} 13. Nd5 {[%clk 0:02:32.4]} 13... Bg4 {[%clk
0:02:21.6]} 14. Ng5 {[%clk 0:02:30.9]} 14... h5 {[%clk 0:02:13.4]} 15. Nxf6+
{[%clk 0:02:20.4]} 15... Bxf6 {[%clk 0:02:12.9]} 16. f3 {[%clk 0:02:06.6]} 16...
Bxg5 {[%clk 0:02:12.8]} 17. Qg3 {[%clk 0:02:05.5]} 17... Be6 {[%clk 0:02:12]}
18. f4 {[%clk 0:01:59.6]} 18... Bh4 {[%clk 0:02:11.4]} 19. Qxh4 {[%clk
0:01:53.6]} 19... Qxh4+ {[%clk 0:02:10.4]} 20. g3 {[%clk 0:01:53.9]} 20... Qe7
{[%clk 0:02:09]} 21. O-O-O {[%clk 0:01:52.7]} 21... exf4 {[%clk 0:02:08]} 22.
gxf4 {[%clk 0:01:51.6]} 22... Bxc4 {[%clk 0:02:07.5]} 23. Rhg1 {[%clk
0:01:48.4]} 23... Qxe4 {[%clk 0:02:06.2]} 24. Rde1 {[%clk 0:01:41.3]} 24...
Qxf4+ {[%clk 0:02:05.5]} 25. Kb1 {[%clk 0:01:39.2]} 25... Be6 {[%clk 0:02:02.5]}
26. Ref1 {[%clk 0:01:34.8]} 26... Qxh2 {[%clk 0:02:00.7]} 27. Rh1 {[%clk
0:01:33]} 27... Qe5 {[%clk 0:02:00.2]} 28. Re1 {[%clk 0:01:31.6]} 28... Qa5
{[%clk 0:01:57.9]} 29. Re3 {[%clk 0:01:21.6]} 29... Qxa2+ {[%clk 0:01:54.9]} 30.
Kc1 {[%clk 0:01:18.1]} 30... Qa1+ {[%clk 0:01:55]} 31. Kd2 {[%clk 0:01:17.2]}
31... Qxh1 {[%clk 0:01:54.7]} 32. Kc3 {[%clk 0:01:16.3]} 32... Qd5 {[%clk
0:01:50.5]} 33. Rd3 {[%clk 0:01:10.9]} 33... Qc4+ {[%clk 0:01:48.6]} 34. Kd2
{[%clk 0:01:11]} 34... Re8 {[%clk 0:01:46.1]} 35. Rc3 {[%clk 0:01:09]} 35...
Qf4+ {[%clk 0:01:44.2]} 36. Kd3 {[%clk 0:01:07.2]} 36... Bf5# {[%clk 0:01:44.2]}
0-1

[Event "Betsys MČR v online bleskovém šachu 2021"]
[Site "Chess.com"]
[Date "2021.04.17"]
[Round "13"]
[White "Michelangelo111"]
[Black "horvi1"]
[Result "1/2-1/2"]
[WhiteElo "2136"]
[BlackElo "2235"]
[TimeControl "180+1"]
[EndTime "11:08:45 PDT"]
[Termination "Remíza dohodou"]

1. Nf3 {[%clk 0:03:00.9]} 1... Nf6 {[%clk 0:02:59.7]} 2. g3 {[%clk 0:03:00.3]}
2... d5 {[%clk 0:02:59.3]} 3. Bg2 {[%clk 0:03:01.2]} 3... Bf5 {[%clk 0:02:58.8]}
4. O-O {[%clk 0:03:01.1]} 4... e6 {[%clk 0:02:58.7]} 5. d4 {[%clk 0:03:01.4]}
5... Bd6 {[%clk 0:02:58.4]} 6. c4 {[%clk 0:03:01.6]} 6... c6 {[%clk 0:02:58.6]}
7. Qb3 {[%clk 0:03:00.5]} 7... Qb6 {[%clk 0:02:52.5]} 8. c5 {[%clk 0:03:00.2]}
8... Qxb3 {[%clk 0:02:52.5]} 9. axb3 {[%clk 0:03:01.1]} 9... Bc7 {[%clk
0:02:51.8]} 10. Nc3 {[%clk 0:03:00.5]} 10... Nbd7 {[%clk 0:02:47.9]} 11. Bf4
{[%clk 0:02:59]} 11... Bxf4 {[%clk 0:02:41.3]} 12. gxf4 {[%clk 0:02:59.9]} 12...
a5 {[%clk 0:02:38]} 13. b4 {[%clk 0:02:54.8]} 13... Ke7 {[%clk 0:02:23.3]} 14.
Rxa5 {[%clk 0:02:51]} 14... Rxa5 {[%clk 0:02:11.3]} 15. bxa5 {[%clk 0:02:51.9]}
15... Ra8 {[%clk 0:02:11.1]} 16. b4 {[%clk 0:02:51.7]} 16... Nh5 {[%clk
0:02:04.2]} 17. e3 {[%clk 0:02:49.6]} 17... Bd3 {[%clk 0:02:03.4]} 18. Ra1
{[%clk 0:02:43.1]} 18... f6 {[%clk 0:02:01]} 19. Nd2 {[%clk 0:02:38.5]} 19... e5
{[%clk 0:01:58]} 20. fxe5 {[%clk 0:02:30.6]} 20... fxe5 {[%clk 0:01:57.9]} 21.
Bf1 {[%clk 0:02:05.7]} 21... Bxf1 {[%clk 0:01:48.9]} 22. Kxf1 {[%clk 0:02:06.6]}
22... exd4 {[%clk 0:01:48.9]} 23. exd4 {[%clk 0:02:06.8]} 23... Nf4 {[%clk
0:01:47.4]} 24. Nf3 {[%clk 0:01:54.5]} 24... Nd3 {[%clk 0:01:42.9]} 25. Rb1
{[%clk 0:01:52.8]} 25... Rf8 {[%clk 0:01:37.1]} 26. Ke2 {[%clk 0:01:51.5]} 26...
Nf4+ {[%clk 0:01:36.2]} 27. Ke3 {[%clk 0:01:44.7]} 27... Ng2+ {[%clk 0:01:25.3]}
28. Ke2 {[%clk 0:01:43.1]} 28... Nf4+ {[%clk 0:01:25.3]} 29. Ke3 {[%clk
0:01:11.6]} 29... Ng2+ {[%clk 0:01:25]} 1/2-1/2

[Event "Betsys MČR v online bleskovém šachu 2021"]
[Site "Chess.com"]
[Date "2021.04.17"]
[Round "13"]
[White "hoacin"]
[Black "Ladislav1969"]
[Result "0-1"]
[WhiteElo "2500"]
[BlackElo "2333"]
[TimeControl "180+1"]
[EndTime "11:08:47 PDT"]
[Termination "Uživatel Ladislav1969 zvítězil matem"]

1. e4 {[%clk 0:03:00.9]} 1... c5 {[%clk 0:02:59.7]} 2. Nf3 {[%clk 0:03:00.5]}
2... e6 {[%clk 0:03:00.4]} 3. d4 {[%clk 0:03:00.2]} 3... cxd4 {[%clk 0:03:01.3]}
4. Nxd4 {[%clk 0:03:00.5]} 4... a6 {[%clk 0:03:02.2]} 5. Bd3 {[%clk 0:02:58.2]}
5... Nc6 {[%clk 0:03:01.4]} 6. Nxc6 {[%clk 0:02:58]} 6... dxc6 {[%clk
0:03:02.3]} 7. O-O {[%clk 0:02:52.8]} 7... e5 {[%clk 0:03:02.4]} 8. a4 {[%clk
0:02:51.4]} 8... Nf6 {[%clk 0:03:02]} 9. a5 {[%clk 0:02:50.9]} 9... Be6 {[%clk
0:02:55.3]} 10. Nd2 {[%clk 0:02:49.2]} 10... Bc5 {[%clk 0:02:52.9]} 11. h3
{[%clk 0:02:29.4]} 11... O-O {[%clk 0:02:44.4]} 12. Qe2 {[%clk 0:02:29]} 12...
g6 {[%clk 0:02:21.9]} 13. Nc4 {[%clk 0:02:22.8]} 13... Qc7 {[%clk 0:02:19.8]}
14. Be3 {[%clk 0:02:19.7]} 14... Bxe3 {[%clk 0:02:18.9]} 15. Qxe3 {[%clk
0:02:17.2]} 15... Bxc4 {[%clk 0:02:17.3]} 16. Bxc4 {[%clk 0:02:16.9]} 16... Rfd8
{[%clk 0:02:15.8]} 17. c3 {[%clk 0:02:12.2]} 17... Rd7 {[%clk 0:02:09.2]} 18.
Be2 {[%clk 0:02:08.3]} 18... Rad8 {[%clk 0:02:06.3]} 19. Rfe1 {[%clk 0:02:05.2]}
19... Rd2 {[%clk 0:02:02.9]} 20. b4 {[%clk 0:02:04.2]} 20... Qe7 {[%clk
0:01:55.4]} 21. Red1 {[%clk 0:01:58.8]} 21... Rxd1+ {[%clk 0:01:54.5]} 22. Rxd1
{[%clk 0:01:58.2]} 22... Rxd1+ {[%clk 0:01:53.8]} 23. Bxd1 {[%clk 0:01:58.2]}
23... Qe6 {[%clk 0:01:48.4]} 24. Qa7 {[%clk 0:01:48.6]} 24... Nxe4 {[%clk
0:01:40]} 25. Qxb7 {[%clk 0:01:47.1]} 25... Nxc3 {[%clk 0:01:34.1]} 26. Bg4
{[%clk 0:01:46.1]} 26... f5 {[%clk 0:01:31.7]} 27. Qxa6 {[%clk 0:01:34.9]} 27...
fxg4 {[%clk 0:01:26.3]} 28. Qb7 {[%clk 0:01:33.5]} 28... gxh3 {[%clk 0:01:19.7]}
29. a6 {[%clk 0:01:33.6]} 29... Ne2+ {[%clk 0:01:14.6]} 30. Kh2 {[%clk
0:01:32.7]} 30... hxg2 {[%clk 0:01:13.5]} 31. Kxg2 {[%clk 0:01:29.9]} 31... Nf4+
{[%clk 0:01:12.8]} 32. Kf3 {[%clk 0:01:27.1]} 32... Qd5+ {[%clk 0:01:12.8]} 33.
Kg3 {[%clk 0:01:25.9]} 33... Qg2+ {[%clk 0:01:11.4]} 34. Kh4 {[%clk 0:01:25.9]}
34... g5# {[%clk 0:01:11.5]} 0-1

[Event "Betsys MČR v online bleskovém šachu 2021"]
[Site "Chess.com"]
[Date "2021.04.17"]
[Round "13"]
[White "MBorkovec"]
[Black "penguinorodriguez"]
[Result "0-1"]
[WhiteElo "2290"]
[BlackElo "2549"]
[TimeControl "180+1"]
[EndTime "11:08:48 PDT"]
[Termination "Uživatel penguinorodriguez zvítězil po vzdání soupeře"]

1. e4 {[%clk 0:03:00.9]} 1... e6 {[%clk 0:03:00.3]} 2. d3 {[%clk 0:02:56]} 2...
c5 {[%clk 0:03:00]} 3. Nd2 {[%clk 0:02:56.6]} 3... Nc6 {[%clk 0:03:00.9]} 4.
Ngf3 {[%clk 0:02:56.7]} 4... g6 {[%clk 0:02:59.7]} 5. g3 {[%clk 0:02:57.1]} 5...
Bg7 {[%clk 0:03:00.3]} 6. Bg2 {[%clk 0:02:57.8]} 6... Nge7 {[%clk 0:03:00.9]} 7.
O-O {[%clk 0:02:58.4]} 7... O-O {[%clk 0:03:01.6]} 8. Re1 {[%clk 0:02:58.3]}
8... e5 {[%clk 0:03:02.1]} 9. Nc4 {[%clk 0:02:57.6]} 9... d6 {[%clk 0:03:00.3]}
10. a4 {[%clk 0:02:51.7]} 10... b6 {[%clk 0:02:59.2]} 11. Bg5 {[%clk 0:02:49.9]}
11... f6 {[%clk 0:02:58.4]} 12. Bd2 {[%clk 0:02:49.3]} 12... Be6 {[%clk
0:02:46.6]} 13. Ne3 {[%clk 0:02:48.7]} 13... d5 {[%clk 0:02:41.8]} 14. exd5
{[%clk 0:02:46.4]} 14... Nxd5 {[%clk 0:02:42.5]} 15. Nxd5 {[%clk 0:02:39.7]}
15... Bxd5 {[%clk 0:02:43.4]} 16. Nh4 {[%clk 0:02:39.4]} 16... Nd4 {[%clk
0:02:27.2]} 17. Bc3 {[%clk 0:02:26.7]} 17... Bxg2 {[%clk 0:02:08.3]} 18. Nxg2
{[%clk 0:02:21.1]} 18... Qd5 {[%clk 0:02:06.1]} 19. Bxd4 {[%clk 0:02:18.9]}
19... cxd4 {[%clk 0:02:07]} 20. Nh4 {[%clk 0:02:04.8]} 20... Rac8 {[%clk
0:01:51.8]} 21. b3 {[%clk 0:01:19.8]} 21... f5 {[%clk 0:01:43.4]} 22. Nf3 {[%clk
0:01:19.4]} 22... e4 {[%clk 0:01:40.9]} 23. Nd2 {[%clk 0:01:12.3]} 23... e3
{[%clk 0:01:29.4]} 24. Nc4 {[%clk 0:01:10.7]} 24... f4 {[%clk 0:01:24.7]} 0-1

[Event "Betsys MČR v online bleskovém šachu 2021"]
[Site "Chess.com"]
[Date "2021.04.17"]
[Round "13"]
[White "Emicka1330"]
[Black "patrikvagner"]
[Result "1-0"]
[WhiteElo "1578"]
[BlackElo "1732"]
[TimeControl "180+1"]
[EndTime "11:08:49 PDT"]
[Termination "Uživatel Emicka1330 zvítězil matem"]

1. e4 {[%clk 0:02:59.5]} 1... c6 {[%clk 0:02:59.4]} 2. d4 {[%clk 0:02:59.3]}
2... d5 {[%clk 0:02:59.2]} 3. e5 {[%clk 0:02:59.1]} 3... Bf5 {[%clk 0:02:58.3]}
4. Nc3 {[%clk 0:02:58.6]} 4... e6 {[%clk 0:02:58.5]} 5. g4 {[%clk 0:02:58.7]}
5... Bg6 {[%clk 0:02:57.5]} 6. Nge2 {[%clk 0:02:58.3]} 6... h5 {[%clk
0:02:56.8]} 7. Nf4 {[%clk 0:02:55.5]} 7... c5 {[%clk 0:02:49.4]} 8. Nxg6 {[%clk
0:02:53.1]} 8... fxg6 {[%clk 0:02:49]} 9. Bd3 {[%clk 0:02:51.4]} 9... cxd4
{[%clk 0:02:38.5]} 10. Bxg6+ {[%clk 0:02:49.3]} 10... Kd7 {[%clk 0:02:35.5]} 11.
Qxd4 {[%clk 0:02:43.1]} 11... Nc6 {[%clk 0:02:33.1]} 12. Qf4 {[%clk 0:02:17.8]}
12... Nh6 {[%clk 0:02:07.1]} 13. gxh5 {[%clk 0:02:06.6]} 13... Be7 {[%clk
0:02:06.6]} 14. Be3 {[%clk 0:01:59.1]} 14... Rf8 {[%clk 0:02:04.4]} 15. Qa4
{[%clk 0:01:39]} 15... Nf5 {[%clk 0:01:56.5]} 16. O-O-O {[%clk 0:01:31]} 16...
a6 {[%clk 0:01:51.3]} 17. Qb3 {[%clk 0:01:26.2]} 17... b5 {[%clk 0:01:46.9]} 18.
Nxd5 {[%clk 0:01:21.7]} 18... exd5 {[%clk 0:01:44.2]} 19. Rxd5+ {[%clk
0:01:19.7]} 19... Bd6 {[%clk 0:01:43.8]} 20. exd6 {[%clk 0:01:15.1]} 20... Qf6
{[%clk 0:01:31.9]} 21. Bxf5+ {[%clk 0:01:10.8]} 21... Qxf5 {[%clk 0:01:30.8]}
22. Rxf5 {[%clk 0:01:09.7]} 22... Rxf5 {[%clk 0:01:30.1]} 23. Rg1 {[%clk
0:01:05.6]} 23... Raf8 {[%clk 0:01:27.5]} 24. Rxg7+ {[%clk 0:01:04.2]} 24... Kc8
{[%clk 0:01:27.6]} 25. Qe6+ {[%clk 0:01:00.4]} 25... Kb8 {[%clk 0:01:27]} 26.
Qd7 {[%clk 0:00:57.6]} 26... Ka8 {[%clk 0:01:26.3]} 27. Qb7# {[%clk 0:00:54.8]}
1-0